Cogmind - Beta 14 *** ADVENTURER MODE // 2024.08.16 @ 23:17:48 Player: Bulbasornado Result: Destroyed by as-35171 with Assembled Heavy Rifle Performance ------------- Evolutions (0) 0 Regions Visited (2) 400 Robots Destroyed (36) 180 Value Destroyed (887) 887 Prototype IDs (0) 0 Alien Tech Used (0) 0 Bonus (39) 39 TOTAL SCORE: 1506 Bonus ------- Follower Combat Kills 39 Cogmind --------- Core Integrity 0/250 Matter 38/300 Energy 100/100 System Corruption 9% Temperature Warm (154) Movement Treading (160) Location -10/Mines Parts ------- > --- POWER (1) -------- (None) > --- PROPULSION (2) --- Improved Treads Improved Treads > --- UTILITY (2) ------ (None) > --- WEAPON (2) ------- Improved Light Cannon Improved Light Cannon > --- INVENTORY (5) ---- Light Nuclear Core Large Storage Unit Medium Battery (150) High-capacity Matter Pod (180) Peak State ------------ > --- POWER ------------ Ion Engine > --- PROPULSION ------- Light Treads Light Treads > --- UTILITY ---------- Improved Heat Sink Large Storage Unit > --- WEAPON ----------- Improved Light Cannon Improved Light Cannon > --- INVENTORY -------- Ion Engine Light Nuclear Core Improved Treads Improved Treads Heat Sink Medium Storage Unit Medium Battery High-capacity Matter Pod Targeting Computer Weapon Shielding Medium Armor Plating Improved Light Cannon Improved Light Cannon [Rating: 13] Favorites ----------- Power Ion Engine Engine Ion Engine Propulsion Light Treads Treads Light Treads Utility Small Storage Unit Device Improved Heat Sink Storage Small Storage Unit Protection Medium Armor Plating Weapon Improved Light Cannon Ballistic Gun Assault Rifle Ballistic Cannon Improved Light Cannon Build | -11 -10 -10 ------- Run | Yrd Mat Min Slots Evolved . | . . . Power . | . . . Propulsion . | . . . Utility . | . . . Weapon . | . . . Parts Attached 27 | 7 14 6 Power 5 | 1 3 1 Engine 5 | 1 3 1 Core . | . . . Reactor . | . . . Propulsion 5 | 2 1 2 Treads 5 | 2 1 2 Leg . | . . . Wheel . | . . . Hover . | . . . Flight . | . . . Utility 7 | 2 4 1 Device 4 | 1 3 . Storage 2 | 1 1 . Processor . | . . . Hackware . | . . . Protection 1 | . . 1 Artifact . | . . . Weapon 10 | 2 6 2 Energy Gun . | . . . Energy Cannon . | . . . Ballistic Gun 6 | 2 4 . Ballistic Cannon 4 | . 2 2 Launcher . | . . . Special Weapon . | . . . Impact Weapon . | . . . Slashing Weapon . | . . . Piercing Weapon . | . . . Special Melee Weapon . | . . . Unidentified Prototypes . | . . . Parts Lost 8 | . . 8 Power 2 | . . 2 Propulsion 2 | . . 2 Utility 2 | . . 2 Weapon 2 | . . 2 Highest Loss Streak 8 | . . 8 To Critical Strikes . | . . . Average Slot Usage (%) 99 | . 100 94 Engine 13 | . 14 11 Treads 28 | . 28 28 Device 13 | . 14 12 Storage 13 | . 14 12 Ballistic Gun 13 | . 15 . Ballistic Cannon 14 | . 12 27 Peak Build Rating 13 | 7 13 13 Average Rating 9 | 5 9 12 On Entrance 6 | . 7 13 Naked Turns . | . . . Heaviest Build 34 | 14 34 34 Greatest Support 40 | 40 40 40 Greatest Overweight (x) . | . . . Average Overweight (x) . | . . . Largest Inventory Capacity 15 | 8 15 15 Average Capacity 11 | 7 10 13 Most Carried 13 | 4 13 13 Average Carried 9 | 2 9 11 Final Capacity 15 | 8 15 5 Final Carried 13 | 4 13 4 Class Distribution -------------------- 100% | Mutant Dominant Class ---------------- Mutant | -10/Materials Mutant | -10/Mines Resources | -11 -10 -10 ----------- Run | Yrd Mat Min Matter Collected 931 | 263 668 . Remotely . | . . . Salvage Created 1068 | 81 922 65 Parts 72 | 4 68 . Haulers Intercepted 1 | . 1 . Recyclers Shooed . | . . . Parts Field Recycled . | . . . Retrieved Matter . | . . . Parts Self-Destructed . | . . . Prevented . | . . . Kills | -11 -10 -10 ------- Run | Yrd Mat Min Combat Hostiles Destroyed 37 | . 24 13 Melee 1 | . 1 . Guns 14 | . 14 . Cannons 22 | . 9 13 Classes Destroyed 9 | 2 6 1 Worker 3 | . 3 . Tunneler 3 | 1 2 . Hauler 1 | . 1 . Recycler 1 | 1 . . Mechanic 1 | . 1 . Watcher 3 | . 3 . Swarmer 2 | . 2 . Grunt 22 | . 22 . Assembled 13 | . . 13 Best Kill Streak 13 | 2 6 13 Combat Bots Only 13 | . 5 13 Max Kills in Single Turn 2 | 1 2 2 Gunslinging . | . . . Exploded . | . . . Melee 1 | . 1 . Uniques/NPCs Destroyed . | . . . Combat | -11 -10 -10 -------- Run | Yrd Mat Min Hostile Shots Fired 225 | . 87 138 Missed 71 | . 31 40 Damage Taken 1743 | . 473 1270 Core 251 | . 85 166 Absorbed by Shields . | . . . Ignored by Resistances 511 | . 146 365 Regen/Repaired (Parts) 52 | . 52 . Core Remaining (%) 100 | 100 . . Volleys Fired 91 | 1 61 29 Largest 2 | 2 2 2 Hottest 78 | 40 78 78 Shots Fired 182 | 2 122 58 Gun 84 | 2 82 . Cannon 98 | . 40 58 Launcher . | . . . Special . | . . . Kinetic 182 | 2 122 58 Thermal . | . . . Explosive . | . . . Electromagnetic . | . . . Robot Hit Streak 18 | 1 18 16 Robot Miss Streak 3 | . 3 2 Penetration Max . | . . . Secondary Targets 2 | . 2 . Max Gunslinging Chain 1 | . 1 . Shots Hit Robots 129 | 1 89 39 Core Hits 61 | 3 41 17 Critical Kills . | . . . Critical Parts Destroyed 1 | . 1 . Critical Strikes 3 | . 3 . Destroy 1 | . 1 . Blast 2 | . 2 . Melee Attacks . | . . . Impact . | . . . Slashing . | . . . Piercing . | . . . Sneak Attacks . | . . . Combat Hostiles . | . . . Follow-up Attacks . | . . . Damage Inflicted 2380 | 25 1500 855 Guns 800 | 11 789 . Cannons 1518 | . 668 850 Explosions . | . . . Melee . | . . . Ramming 62 | 14 43 5 Kinetic 2318 | 11 1457 850 Thermal . | . . . Explosive . | . . . Electromagnetic . | . . . Impact . | . . . Slashing . | . . . Piercing . | . . . Highest Corruption 9 | . 1 9 Average Corruption 1 | . 1 2 Corruption Purged . | . . . Corruption Blocked . | . . . Effects 13 | . 11 2 Message Errors 2 | . 2 . Matter Fused 3 | . 2 1 Heat Flow Errors 2 | . 2 . Energy Discharges 2 | . 1 1 Data Loss (minor) 4 | . 4 . Overload Shots . | . . . Overflow Damage 20 | . . 20 Projectiles 20 | . . 20 Explosions . | . . . Melee . | . . . Knockbacks 21 | . 3 18 Impact . | . . . Kinetic 21 | . 3 18 Secondary . | . . . Self-Inflicted Damage . | . . . Shots . | . . . Rammed 22 | 5 16 1 Targets Rammed 26 | 6 19 1 Kicked . | . . . Crushed 4 | 1 3 . Highest Temperature 238 | . 238 154 Average Temperature 76 | . 62 88 Received Heat Transfer 503 | . 303 200 Siege Activations . | . . . Robots Corrupted . | . . . Combat Hostiles . | . . . Parts Fried . | . . . Impact Corruptions . | . . . Robots Melted . | . . . Combat Hostiles . | . . . Parts Melted . | . . . Heat Transferred . | . . . Parts Sabotaged . | . . . Parts Stolen . | . . . Parts Stripped . | . . . Power Chain Reactions . | . . . Alert | -11 -10 -10 ------- Run | Yrd Mat Min Peak Influence 331 | 10 331 79 Initial 48 | . 5 48 Average 135 | 3 160 39 Maximum Alert Level 1 | . 1 . Low Security (%) 70 | 100 63 100 Level 1 29 | . 36 . Level 2 . | . . . Level 3 . | . . . Level 4 . | . . . Level 5 . | . . . High Security . | . . . Max Security . | . . . Squads Dispatched 7 | . 7 . Investigation 7 | . 7 . Extermination . | . . . Reinforcement . | . . . Assault . | . . . Garrison . | . . . Intercept . | . . . Searches Triggered . | . . . Construction Impeded . | . . . Haulers Reinforced . | . . . Active Scanning Responses . | . . . Cargo Convoy Interrupts . | . . . Stealth | -11 -10 -10 --------- Run | Yrd Mat Min Distress Signals 2 | . 2 . Communications Jammed . | . . . Distress Signals . | . . . Times Spotted 52 | . 31 21 Peak Tracking Total 12 | . 5 12 Tactical Retreats 4 | . 2 2 Traps | -11 -10 -10 ------- Run | Yrd Mat Min Traps Triggered 2 | . 2 . Indirectly . | . . . Trap Hack Attempts . | . . . Triggered . | . . . Disarmed . | . . . Reprogrammed . | . . . Reused . | . . . Traps Extracted . | . . . Installed . | . . . Triggered . | . . . Machines | -11 -10 -10 ---------- Run | Yrd Mat Min Machines Disabled . | . . . Max in Single Turn . | . . . Machines Repaired . | . . . Machines Dismantled . | . . . Machines Sabotaged . | . . . Overloaded Fab Kills . | . . . Hacking | -11 -10 -10 --------- Run | Yrd Mat Min Machines Accessed 10 | . 10 . Terminals 7 | . 7 . Fabricators . | . . . Repair Stations 1 | . 1 . Recycling Units 2 | . 2 . Scanalyzers . | . . . Garrison Access . | . . . Total Hacks 33 | . 33 . Successful 19 | . 19 . Failed 13 | . 13 . Catastrophic . | . . . Database Lockouts 1 | . 1 . Manual 24 | . 24 . Terminals 24 | . 24 . Fabricators . | . . . Repair Stations 3 | . 3 . Recycling Units 6 | . 6 . Scanalyzers . | . . . Garrison Access . | . . . Terminal Hacks 10 | . 10 . Robot Analysis 4 | . 4 . Level Access Points 1 | . 1 . Branch Access Points 1 | . 1 . Locate Traps 2 | . 2 . Hauler Manifests 1 | . 1 . Zone Layout 1 | . 1 . Fabricator Hacks . | . . . Repair Station Hacks 2 | . 2 . Scan Component 1 | . 1 . Repair 1 | . 1 . Recycling Unit Hacks 3 | . 3 . Report Inventory 2 | . 2 . Retrieve Components 1 | . 1 . Scanalyzer . | . . . Garrison Access Hacks . | . . . Unauthorized Hacks 4 | . 4 . Terminals 4 | . 4 . Botnet 2 | . 2 . Disrupt 1 | . 1 . Operators 1 | . 1 . Fabricators . | . . . Repair Stations . | . . . Recycling Units . | . . . Scanalyzers . | . . . Garrison Access . | . . . Data Cores Recovered . | . . . Used . | . . . Hacking Detections 10 | . 10 . Full Trace Events 8 | . 8 . Feedback Events 1 | . 1 . Corruption 1 | . 1 . Feedback Blocked . | . . . Robot Schematics Acquired . | . . . Robots Built . | . . . Authchips . | . . . Time . | . . . Total Robot Build Rating . | . . . Part Schematics Acquired . | . . . Parts Built . | . . . Authchips . | . . . Time . | . . . Total Part Build Rating . | . . . Parts Repaired 1 | . 1 . Time 16 | . 16 . Parts Recycled . | . . . Recycled Matter . | . . . Retrieved Matter . | . . . Retrieved Components 7 | . 7 . Parts Scanalyzed . | . . . Part Schematics Acquired . | . . . Parts Damaged . | . . . Bothacking | -11 -10 -10 ------------ Run | Yrd Mat Min Used RIF Installer . | . . . Robots Hacked . | . . . Non-combat . | . . . Combat . | . . . Robot Hacks Applied . | . . . Relay Couplers Released . | . . . Fabnet Peak Effective % . | . . . Robots Rewired . | . . . Allies Hacked . | . . . Hacks Repelled . | . . . Allies | -11 -10 -10 -------- Run | Yrd Mat Min Total Allies 1 | . . 1 Largest Group 1 | . . 1 Highest-Rated Group 31 | . . 31 Highest-Rated Ally 31 | . . 31 Total Orders . | . . . Ally Attacks 5 | . . 5 Total Damage 103 | . . 103 Kills 2 | . . 2 Allies Corrupted . | . . . Allies Melted . | . . . Intel | -11 -10 -10 ------- Run | Yrd Mat Min Robot Analysis Total 4 | . 4 . Derelict Logs Recovered 1 | . . 1 Drone Launches . | . . . Drone Recoveries . | . . . Exploration | -11 -10 -10 ------------- Run | Yrd Mat Min Turns Passed 1808 | 113 1467 228 Spaces Moved 866 | 56 727 83 Core 2 | 2 . . Treads 864 | 54 727 83 Legs . | . . . Wheels . | . . . Hover . | . . . Flight . | . . . Fastest Speed 50 | 50 160 160 Average Speed 159 | 156 160 160 Slowest Speed 160 | 160 160 160 Overloaded Moves . | . . . Propulsion Burnouts . | . . . Robots Hopped . | . . . Cave-ins Triggered . | . . . Exploration Rate (%) 42 | 4 95 27 Regions Visited 2 Branch Regions 1 Pre-discovered Areas . | . . . Known Exits Taken 1 | . 1 . Unknown Exits Taken 1 | 1 . . Scrap Searched . | . . . Spaces Dug . | . . . Terrain Destroyed 4 | . 3 1 Melee . | . . . Projectile 4 | . 3 1 AOE . | . . . Terrain Rammed . | . . . Walls Destroyed . | . . . Machines Disabled . | . . . Actions | -11 -10 -10 --------- Run | Yrd Mat Min Total 1099 | 73 907 119 Wait 51 | . 51 . Move 865 | 56 726 83 Hop . | . . . Pick Up 23 | 4 19 . Fast Attach 7 | 7 . . Attach 5 | . . 5 Detach . | . . . Swap 15 | . 14 1 Drop 17 | . 17 . Fire 91 | 1 61 29 Melee . | . . . Ram . | . . . Kick . | . . . Crush 25 | 5 19 1 Escape Stasis . | . . . Rewire . | . . . Trap . | . . . Miscellaneous . | . . . Route ------- -11/Scrapyard -10/Materials (discovered 4 exits: *Mat x3 / *Min) -10/Mines History --------- Turn | Location | Event 10 | -11/Scrapyard | Discovered new exit (range 15) 114 | -11/Scrapyard | Entered Materials 305 | -10/Materials | Build established: Mutant 401 | -10/Materials | Central database locked down 773 | -10/Materials | Discovered new exit (range 16) 1021 | -10/Materials | Discovered new exit (range 16) 1186 | -10/Materials | Repaired Med. Armor Plating 1365 | -10/Materials | Discovered new exit (range 13) 1465 | -10/Materials | Discovered new exit (range 13) 1465 | -10/Materials | Identified exit to Mines 1465 | -10/Materials | Identified exit to Materials 1581 | -10/Materials | Entered Mines 1584 | -10/Mines | Received a Mining Laser from a helpful Derelict 1594 | -10/Mines | Met a Derelict bent on vengeance 1597 | -10/Mines | Learned Materials interactive machine intel 1706 | -10/Mines | A weapon hastily lodged in a ceiling crevice suddenly fell to the ground 1709 | -10/Mines | Assembled infested the area 1733 | -10/Mines | Core integrity fell below 50% 1782 | -10/Mines | Core integrity fell below 20% 1809 | -10/Mines | Destroyed by as-35171 with Assembled Heavy Rifle Last Messages --------------- 01795_ Med. Armor Plating destroyed. 01797_ U-05 Engineer lays Concrete. 01797_ as-33801 destroyed. 01798_ U-05 Engineer lays Concrete. 01798_ R-06 Scavenger collects Med. Storage Unit. 01799_ U-05 Engineer lays Concrete. 01800_ as-96633 destroyed. 01801_ U-05 Engineer lays Concrete. 01801_ R-06 Scavenger collects Weapon Shielding. 01802_ U-05 Engineer lays Concrete. 01803_ U-05 Engineer destroyed. 01803_ U-05 Engineer lays Concrete. 01803_ Destroyed Asb. F-torch. 01803_ as-81315 knocked back. 01803_ as-81315 destroyed. 01804_ U-05 Engineer lays Concrete. 01804_ R-06 Scavenger collects Targeting Computer. 01804_ U-05 Engineer destroyed. 01806_ as-35171 knocked back. 01808_ R-06 Scavenger collects Heat Sink. Map ----- +----------------------------------------------------+ | ?????????????????????????????????????????????????? | | ?????????????????????????????????????????????????? | | ?????????????????????????????????????????????????? | | ?????????????????????????????????????????????????? | | ?????????????????????????????????????????????????? | | ?????????????????????????????????????????????????? | | ?????????????????????????????????????????????????? | | ?????????????????????????????????????????????????? | | ?????????????????????????????????????????????????? | | ????????????????????????? ??????????????????????? | | ????????????????????????? ??????????????????????? | | ?????????????????????????"%??????????????????????? | | ???????????????????????## ??????????????????????? | | ??????????????????????## ???????????????????????? | | ??????????????????????# ???????????????????????? | | ??????????????????????# ???????####????????????? | | ?????????????????????##%% ???##### ##???????????? | | ????????????????????## %#??## #???????????? | | ????????????# ##??###% =*#?## #???????##### | | ???????????## *!##! == ### ##???????# | | ???????????# %! #????????# ### | | ???????????# * ##???????# #?? | | ???????????# %! / ##??????# #?? | | ??????????# !! % ##?????# #?? | | ???????????# !%a% %r ####### ##? | | ???????????### %* %%% @ #? | | ?????????????## %%% ### #? | | ??????????????# % ## ##?########## #? | | ??????????????# %% %% # ##???????????# #? | | ??????????????## %# # # #####????????????# #? | | ???????????????# %######?###????????????????# #? | | ??????????????# ?????????????????????????## #? | | ??????????????# % ?????????????????????????## #? | | ??????????????# #?????????????????????????# ## | | ??????????????# %??????????????????????????# | | ?????????????? ???????????????????????????# | | ???????????????????????????????????????????# | | ???????????????????????????????????????????# | | ???????????????????????????????????????????# | | | ???????????????????????????????????????????## | | ????????????????????????????????????????????##### | | ?????????????????????????????????????????????????# | | ?????????????????????????????????????????????????? | | ?????????????????????????????????????????????????? | | ?????????????????????????????????????????????????? | | ?????????????????????????????????????????????????? | | ?????????????????????????????????????????????????? | | ?????????????????????????????????????????????????? | | ?????????????????????????????????????????????????? | | | +----------------------------------------------------+ Best States ------------- Heat Dissipation 39 Energy Generation 10 Energy Capacity 250 Matter Stores 300 Matter Capacity 300 Sight Range 16 Terrain Scan Density 10 Armor Coverage 225 Resistance: KI 20 Resistance: TH 20 Resistance: EX 20 Resistance: EM 20 Resistance: I 20 Resistance: S 20 Resistance: P 20 Evasion (%) 40 Recoil Reduction 2 Offensive Hacking 10 Item Schematics ----------------- None Robot Schematics ------------------ None Fabricated ------------ Nothing Alien Tech Used ----------------- None Achievements -------------- Fist Fight Challenges ------------ None Game ------ Seed BiocellDefenseTube Manual? 0 Play Time 00:29:37 Cumulative 172.5 hours Start 2024.08.16 @ 20:39:57 End 2024.08.16 @ 23:17:48 Sessions 1 Manual Loads 0 Difficulty Adventurer Special Mode None Game No. 57 Rogue 51 Adventurer 6 Explorer 0 Win Type - Total 4 Types 2/0/1/1/0/0/0/0/0 Lore% 57 Gallery% 66 Achievement% 54 Wizard Run 0 Options --------- Layout 0 ASCII 0 Keyboard 1 Movement Vi Keybinds 0 Fullscreen 2 Font 18/Smallcaps Map View 76x50 Zoom Use 0% Tactical HUD 1 Map Filters NONE Filters NONE Steam 1 RUN: b0a7369f-2edb-4704-bf2d-75dc6eab2982